bitfinex-derivatives/quotes_ETHF0:USTF0_20250213
["timestamp","ask_amount","ask_price","bid_price","bid_amount"]
[1739423070521,3.21333097,2713.3,2712.7,0.74268097]
[1739423071022,0.73708,2713.0,2712.7,0.74268097]
[1739423071417,0.73708,2713.0,2712.7,0.00553097]
[1739423071619,3.21333097,2713.3,2712.7,0.00553097]
[1739423071819,3.21333097,2713.3,2712.9,0.73709]
[1739423072022,0.73702,2713.2,2712.7,0.00553097]
[1739423072216,3.95034097,2713.3,2712.7,0.00553097]
[1739423072425,3.21333097,2713.3,2712.7,5.80062995]
[1739423072620,0.00553097,2713.3,2713.2,0.73702]
[1739423072818,0.5385,2714.0,2713.6,0.7369]
[1739423072819,3.2078,2713.9,2713.6,0.7369]
[1739423073121,3.2078,2713.9,2713.3,4.01509898]
[1739423073322,3.7555,2714.2,2713.6,4.01509898]
[1739423073619,0.5928,2714.6,2714.1,0.73677]
[1739423073620,0.73668,2714.5,2714.1,0.73677]
[1739423073823,0.73677,2714.2,2714.0,0.5527]
[1739423074122,0.73674,2714.3,2714.0,0.55823097]
[1739423074325,3.80613097,2714.6,2714.0,1.29503097]
[1739423074626,3.80613097,2714.6,2714.0,0.55823097]
[1739423075124,4.54280097,2714.6,2714.2,0.73675]
[1739423075420,3.80613097,2714.6,2714.0,0.55823097]
[1739423075818,0.73671,2714.4,2714.0,0.55823097]
[1739423076122,0.73676,2714.2,2714.0,0.55823097]
[1739423076425,3.2078,2714.3,2714.0,1.29503097]
[1739423076624,3.2078,2714.3,2714.0,0.00553097]
[1739423076836,0.73678,2714.1,2714.0,0.00553097]
[1739423077121,0.73678,2714.1,2712.9,1.84273]
[1739423077122,10.01509898,2714.1,2713.1,1.781]
[1739423077329,0.73701,2713.3,2712.9,0.73709]
[1739423077625,3.2078,2713.4,2712.8,1.782]
[1739423078025,0.73699,2713.4,2713.0,0.73706]
[1739423078224,0.5841,2713.6,2713.0,0.73706]
[1739423078522,3.2078,2713.3,2712.8,0.00553097]
[1739423078723,0.73702,2713.2,2712.8,0.74266097]
[1739423079118,3.2078,2713.3,2712.8,0.00553097]
[1739423079421,0.73711,2712.9,2712.8,0.00553097]
[1739423079928,3.94488,2713.0,2712.8,0.00553097]
[1739423080330,0.00553097,2713.1,2712.8,0.00553097]
[1739423080636,0.73709,2713.0,2712.8,0.00553097]
[1739423080821,0.00553097,2713.1,2712.8,0.00553097]
[1739423081021,3.94491,2712.9,2712.8,0.00553097]
[1739423081238,3.2078,2712.9,2712.8,0.00553097]
[1739423081932,3.94491,2712.9,2712.8,0.00553097]
[1739423083230,9.2078,2712.9,2712.1,3.2078]
[1739423083536,3.2078,2712.9,2712.1,3.2078]
[1739423083932,0.73715,2712.8,2712.3,0.73724]
[1739423084133,3.2078,2712.9,2712.1,3.2078]
[1739423084335,0.73718,2712.7,2712.1,3.2078]
[1739423084832,0.73714,2712.8,2712.4,0.73723]
[1739423085029,0.73716,2712.7,2712.4,0.73723]
[1739423085329,0.7372,2712.6,2712.1,3.2078]
[1739423085628,3.2078,2712.9,2712.1,7.22289898]
[1739423085836,3.2078,2712.9,2712.7,0.73715]
[1739423086035,0.00553097,2713.1,2712.5,1.778]
[1739423086335,0.00553097,2713.1,2712.6,1.1653]
[1739423086540,0.00553097,2713.1,2712.9,0.7371]
[1739423087035,0.00553097,2713.1,2712.8,40.8]
[1739423087236,0.00553097,2713.1,2713.0,0.73708]
[1739423087437,0.00553097,2713.1,2713.0,6.53017898]
[1739423088040,0.00553097,2713.1,2713.0,1.778]
[1739423088730,0.00553097,2713.1,2713.0,2.51508]
[1739423089933,0.00553097,2713.1,2713.0,6.53017898]
[1739423092638,0.00553097,2713.1,2713.0,4.01509898]
[1739423092936,0.00553097,2713.1,2713.0,1.773]
[1739423093336,0.00553097,2713.1,2713.0,1.772]
[1739423093535,0.00553097,2713.1,2713.0,0.73708]
[1739423093730,0.00553097,2713.1,2713.0,2.50908]
[1739423094937,0.00553097,2713.1,2713.0,1.772]
[1739423095335,0.00553097,2713.1,2713.0,2.50908]
[1739423096845,0.00553097,2713.1,2713.0,6.52417898]
[1739423097846,3.2078,2713.6,2713.4,0.73697]
[1739423098243,3.94472,2713.6,2713.4,0.73697]
[1739423098542,3.94472,2713.6,2713.3,0.73698]
[1739423098742,0.73696,2713.5,2713.2,0.73701]
[1739423098937,3.2078,2713.6,2713.0,8.76911349]
[1739423099139,3.2078,2713.6,2713.1,2.49904]
[1739423099344,3.2078,2713.6,2712.8,40.80553097]
[1739423099537,0.73704,2713.2,2713.1,1.761]
[1739423100238,0.73702,2713.2,2713.1,1.761]
[1739423100536,3.2078,2713.6,2713.2,0.73701]
[1739423100740,0.73697,2713.5,2713.2,0.73701]
[1739423100940,3.2078,2713.6,2713.3,0.73698]
[1739423101540,3.94473,2713.6,2713.1,1.761]
[1739423101930,3.94473,2713.6,2713.2,0.73702]
[1739423101931,0.73696,2713.5,2713.2,0.73702]
[1739423102242,0.73702,2713.2,2713.1,1.761]
[1739423102440,0.73702,2713.3,2713.1,1.761]
[1739423102648,3.94472,2713.6,2713.3,0.73697]
[1739423102937,0.73709,2713.0,2712.8,0.00553097]
[1739423103146,3.94481,2713.3,2713.0,0.73707]
[1739423103339,3.94481,2713.3,2712.8,1.76453097]
[1739423103642,3.2078,2713.3,2712.8,1.76453097]
[1739423103837,3.2078,2713.6,2712.8,1.76453097]
[1739423104337,0.73695,2713.5,2713.2,0.73701]
[1739423104740,0.73695,2713.5,2713.2,0.737]
[1739423105044,0.73698,2713.4,2713.1,0.73704]
[1739423105240,3.2078,2713.6,2712.9,3.2078]
[1739423105441,0.73701,2713.3,2713.0,0.73707]
[1739423105842,3.2078,2713.6,2712.8,1.76453097]
[1739423106043,3.2078,2713.6,2713.1,0.73705]
[1739423106245,0.737,2713.3,2712.8,1.76453097]
[1739423106446,3.2078,2713.6,2712.8,1.76453097]
[1739423106649,0.73695,2713.5,2713.2,0.737]
[1739423106843,3.94473,2713.6,2713.3,0.73697]
[1739423107146,3.94473,2713.6,2712.8,1.76453097]
[1739423107147,3.2078,2713.6,2712.8,1.76453097]
[1739423107344,0.73701,2713.3,2713.0,0.73706]
[1739423107739,0.73707,2713.1,2712.8,2.50165097]
[1739423107940,3.2078,2713.3,2712.8,1.76453097]
[1739423108141,3.94481,2713.3,2713.0,0.73706]
[1739423108550,0.73706,2713.1,2712.8,2.50164097]
[1739423108749,0.73706,2713.1,2712.8,1.76453097]
[1739423108945,3.2078,2713.3,2712.8,1.76453097]
[1739423109139,0.73703,2713.2,2712.8,0.00553097]
[1739423109446,3.2078,2713.3,2712.8,0.00553097]
[1739423109643,0.73703,2713.2,2712.9,0.73709]
[1739423109851,3.94481,2713.3,2712.8,0.00553097]
[1739423110149,3.94481,2713.3,2713.0,0.73707]
[1739423110351,0.73703,2713.2,2712.9,0.73708]
[1739423110551,0.73709,2713.0,2712.8,0.00553097]
[1739423110846,3.2078,2713.3,2712.8,0.00553097]
[1739423111144,0.73704,2713.2,2712.9,0.73709]
[1739423111350,0.73704,2713.2,2712.8,0.00553097]
[1739423111540,3.94481,2713.3,2712.9,0.73711]
[1739423111745,3.94481,2713.3,2713.0,0.73706]
[1739423112048,3.94482,2713.3,2713.0,0.73706]
[1739423112449,3.2078,2713.3,2713.0,0.73706]
[1739423113054,0.73703,2713.2,2712.9,0.73709]
[1739423113357,3.9448,2713.3,2713.1,0.73705]
[1739423113549,3.2078,2713.3,2712.8,0.00553097]
[1739423113958,0.73711,2712.9,2712.8,0.00553097]
[1739423115656,3.2078,2713.0,2712.8,0.00553097]
[1739423116055,3.94489,2713.0,2712.8,0.74265097]
[1739423116350,0.73711,2712.9,2712.8,0.00553097]
[1739423116750,3.2078,2713.0,2712.8,0.00553097]
[1739423116956,3.94489,2713.0,2712.8,0.00553097]
[1739423117152,3.2078,2713.0,2712.8,0.00553097]
[1739423117357,1.31564,2713.2,2712.8,0.00553097]
[1739423117558,1.31564,2713.2,2712.9,0.73709]
[1739423117957,0.5786,2713.2,2712.8,0.00553097]
[1739423118262,0.7371,2713.0,2712.8,0.00553097]
[1739423118555,3.2078,2713.1,2712.9,0.7371]
[1739423118755,3.2078,2713.1,2712.8,0.00553097]
[1739423118957,3.2078,2713.1,2713.0,0.73708]
[1739423119162,4.50168,2713.4,2712.8,0.57593097]
[1739423119460,3.7647,2713.4,2712.8,0.57593097]
[1739423119864,3.2078,2713.1,2712.8,0.00553097]
[1739423120059,0.73711,2712.9,2712.8,0.00553097]
[1739423120757,0.5817,2713.0,2712.8,0.00553097]
[1739423121064,1.31878,2713.0,2712.8,0.00553097]
[1739423121255,0.5817,2713.0,2712.8,0.74266097]
[1739423121455,0.5817,2713.0,2712.8,0.00553097]
[1739423121657,3.2078,2713.1,2712.8,0.00553097]
[1739423121851,3.7647,2713.4,2712.8,0.00553097]
[1739423122165,0.73706,2713.1,2712.8,0.55883097]
[1739423122555,3.2078,2713.1,2712.8,0.00553097]
[1739423122751,0.73711,2712.9,2712.8,0.00553097]
[1739423123861,0.5817,2713.0,2712.8,0.00553097]
[1739423124160,3.2078,2713.1,2712.9,0.73709]
[1739423124364,3.2078,2713.1,2713.0,0.73708]
[1739423125467,3.2078,2713.1,2712.8,0.00553097]
[1739423125668,0.73701,2713.3,2713.0,0.73708]
[1739423125967,0.73703,2713.2,2712.9,0.73709]
[1739423126169,4.312,2713.4,2713.0,0.73706]
[1739423126362,4.312,2713.4,2712.8,0.00553097]
[1739423126661,4.49207,2713.4,2713.1,0.73703]
[1739423126855,4.49207,2713.4,2712.8,0.58893097]
[1739423126856,4.49207,2713.4,2712.9,0.5592]
[1739423127056,3.7551,2713.4,2712.9,0.5592]
[1739423127263,3.2078,2713.4,2713.2,0.73701]
[1739423127662,3.2078,2713.4,2713.0,0.5837]
[1739423127864,0.73701,2713.3,2713.0,1.32077]
[1739423128066,3.2078,2713.4,2713.0,0.5837]
[1739423128268,3.2078,2713.4,2713.3,0.737]
[1739423129762,3.2078,2713.4,2713.0,6.99817578]
[1739423130166,3.2078,2713.4,2713.2,0.73701]
[1739423130368,0.54383097,2713.7,2713.0,6.99817578]
[1739423130563,0.54383097,2713.7,2713.5,0.73693]
[1739423130766,0.54383097,2713.7,2713.0,8.84083578]
[1739423130767,0.00553097,2713.7,2713.6,0.73692]
[1739423131066,0.00553097,2713.7,2713.6,3.94359578]
[1739423131271,0.00553097,2713.7,2713.6,44.00667578]
[1739423131475,0.00553097,2713.7,2713.6,44.74359578]
[1739423131967,0.00553097,2713.7,2713.6,45.31829578]
[1739423132173,0.00553097,2713.7,2713.3,7.15145578]
[1739423132468,0.73693,2713.6,2713.3,3.94365578]
[1739423132765,0.00553097,2713.7,2713.3,3.20667578]
[1739423132963,0.00553097,2713.7,2713.5,0.73693]
[1739423133162,0.00553097,2713.7,2713.3,3.20667578]
[1739423133458,0.73692,2713.6,2713.3,3.94365578]
[1739423133662,0.74243097,2713.7,2713.4,0.73697]
[1739423134063,0.00553097,2713.7,2713.5,0.73694]
[1739423134264,0.00553097,2713.7,2713.3,3.20667578]
[1739423134460,0.00553097,2713.7,2713.6,0.73692]
[1739423135267,0.00553097,2713.7,2713.3,6.41447578]
[1739423135570,0.00553097,2713.7,2713.6,0.73692]
[1739423138872,0.00553097,2713.7,2713.6,3.94359578]
[1739423142175,0.00553097,2713.7,2713.6,3.20667578]
[1739423142472,0.00553097,2713.7,2713.5,1.87353]
[1739423142677,0.00553097,2713.7,2713.3,6.41447578]
[1739423142879,0.00553097,2713.7,2713.5,1.724]
[1739423142880,0.73692,2713.6,2713.5,1.724]
[1739423143078,0.74243097,2713.7,2713.5,1.724]
[1739423143277,0.73692,2713.6,2713.5,1.724]
[1739423143669,0.00553097,2713.7,2713.5,1.724]
[1739423143976,3.2078,2714.1,2713.6,6.41447578]
[1739423144179,3.2078,2714.1,2713.8,0.73684]
[1739423144676,3.2078,2714.1,2713.7,5.8802383]
[1739423144875,3.2078,2714.1,2713.7,1.1048]
[1739423145075,0.73682,2714.0,2713.7,1.84168]
[1739423145270,0.73683,2714.0,2713.7,1.1048]
[1739423145471,3.7547,2714.1,2713.7,1.1048]
[1739423145672,0.73681,2714.0,2713.7,1.1048]
[1739423146279,3.7547,2714.1,2713.6,3.2078]
[1739423146778,0.73685,2713.9,2713.5,0.73693]
[1739423147282,0.73685,2713.9,2713.6,0.73691]
[1739423147582,3.7547,2714.1,2713.6,3.20667578]
[1739423147878,3.7547,2714.1,2714.0,0.73681]
[1739423148080,3.2078,2714.1,2714.0,0.73681]
[1739423148279,0.00553097,2714.2,2714.1,0.73678]
[1739423148478,0.00553097,2714.2,2714.0,4.9288]
[1739423148773,0.00553097,2714.2,2714.1,0.73678]
[1739423150972,0.00553097,2714.2,2714.0,1.721]
[1739423151578,0.00553097,2714.2,2714.1,0.73678]
[1739423151980,0.00553097,2714.2,2714.0,1.721]
[1739423152378,0.00553097,2714.2,2713.9,3.20667578]
[1739423152578,0.00553097,2714.2,2713.9,4.92967578]
[1739423153382,0.00553097,2714.2,2713.9,5.66649578]
[1739423153582,0.00553097,2714.2,2713.9,5.66648578]
[1739423153881,0.00553097,2714.2,2713.9,4.92967578]
[1739423154081,0.00553097,2714.2,2714.1,0.73678]
[1739423155180,0.00553097,2714.2,2714.1,41.53678]
[1739423155983,0.00553097,2714.2,2714.1,1.722]
[1739423156182,0.00553097,2714.2,2714.1,2.45878]
[1739423159388,0.00553097,2714.2,2713.8,2.2561]
[1739423159689,0.00553097,2714.2,2713.9,0.73681]
[1739423159883,0.00553097,2714.2,2713.9,3.20667578]
[1739423160081,0.00553097,2714.2,2714.1,0.73678]
[1739423160785,0.00553097,2714.2,2713.9,7.99935692]
[1739423160991,0.00553097,2714.2,2714.0,0.73679]
[1739423161190,0.00553097,2714.2,2713.9,3.20667578]
[1739423161397,0.74229097,2714.2,2713.9,3.94349578]
[1739423161690,0.00553097,2714.2,2713.9,3.20667578]
[1739423161891,0.74229097,2714.2,2713.9,3.20667578]
[1739423162206,0.00553097,2714.2,2714.0,0.73679]
[1739423162495,0.00553097,2714.2,2713.9,3.20667578]
[1739423162695,0.00553097,2714.2,2714.0,0.73681]
[1739423162993,0.00553097,2714.2,2714.1,0.73678]
[1739423163288,0.00553097,2714.2,2714.1,8.74770803]
[1739423163491,0.58339047,2714.6,2714.5,0.73667]
[1739423163692,3.79119047,2715.4,2714.7,1.84153]
[1739423163896,3.79119047,2715.4,2714.9,3.20667578]
[1739423164192,0.5758,2715.7,2715.2,0.73646]
[1739423164193,4.51996,2715.7,2715.2,0.73646]
[1739423164396,3.7836,2715.7,2715.4,0.73641]
[1739423164700,3.78913097,2715.7,2715.4,0.73641]
[1739423165095,3.78913097,2715.7,2715.3,0.5754]
[1739423165399,3.78913097,2715.7,2715.6,0.73637]
[1739423165400,0.00553097,2715.7,2715.6,0.73637]
[1739423165601,0.00553097,2715.7,2715.5,3.20667578]
[1739423165801,0.00553097,2715.7,2715.6,1.728]
[1739423165998,0.00553097,2715.7,2715.6,3.55897]
[1739423166192,0.00553097,2715.7,2715.6,2.8226]
[1739423166392,0.00553097,2715.7,2715.6,3.55897]
[1739423166903,0.00553097,2715.7,2715.6,2.8226]
[1739423167289,0.00553097,2715.7,2715.5,3.20667578]
[1739423167497,0.7364,2715.5,2715.3,0.5754]
[1739423167797,0.73645,2715.3,2715.2,0.00553097]
[1739423167997,0.7366,2714.8,2714.5,4.9438]
[1739423168194,3.2078,2715.0,2714.5,4.9438]
[1739423168386,3.7688,2715.3,2714.6,4.94267578]
[1739423168698,0.73654,2715.0,2714.6,4.94267578]
[1739423168889,3.2078,2715.0,2714.6,4.94267578]
[1739423169091,3.7688,2715.3,2714.6,5.67929578]
[1739423169292,0.73654,2715.0,2714.6,5.67929578]
[1739423169595,3.2078,2715.0,2714.6,1.736]
[1739423169791,3.2078,2715.0,2714.5,0.00553097]
[1739423170101,0.73664,2714.6,2714.5,0.00553097]
[1739423170595,1.27624,2714.6,2714.5,0.00553097]
[1739423173197,1.84264,2714.6,2714.5,0.00553097]
[1739423174198,10.31267578,2714.6,2713.7,3.79047578]
[1739423174391,0.73685,2713.9,2713.7,1.731]
[1739423174597,3.2078,2714.2,2713.7,1.731]
[1739423174798,0.73681,2714.0,2713.7,2.46788]
[1739423175198,0.73685,2713.9,2713.7,1.731]
[1739423175393,0.73684,2713.9,2713.7,1.731]
[1739423176090,0.00553097,2714.1,2713.7,1.731]
[1739423176293,0.73684,2713.9,2713.7,1.731]
[1739423177202,0.73686,2713.8,2713.7,1.731]
[1739423177398,0.5397,2714.0,2713.6,0.54313097]
[1739423177607,0.73689,2713.7,2713.6,0.54313097]
[1739423178407,0.5397,2714.0,2713.6,1.28003097]
[1739423178596,0.73687,2713.8,2713.6,0.54313097]
[1739423178793,0.5397,2714.0,2713.6,0.54313097]
[1739423178998,0.73689,2713.7,2713.6,0.54313097]
[1739423179803,0.73689,2713.7,2713.6,0.00553097]
[1739423180299,0.73708,2713.0,2712.9,2.8188]
[1739423180802,3.2078,2713.5,2712.9,2.8188]
[1739423180998,0.5425,2713.4,2713.0,0.73707]
[1739423181206,0.737,2713.3,2713.0,0.73708]
[1739423181407,0.5425,2713.4,2712.9,2.8188]
[1739423181802,0.73708,2713.1,2712.9,2.8188]
[1739423182200,0.73708,2713.0,2712.9,2.8188]
[1739423182503,0.73708,2713.0,2712.9,0.5364]
[1739423183412,0.73711,2712.9,2712.8,6.41447578]
[1739423183603,0.7371,2713.0,2712.8,6.41447578]
[1739423183906,3.2078,2713.2,2712.8,3.2078]
[1739423184309,0.73711,2712.9,2712.8,3.2078]
[1739423186108,0.5643,2713.1,2712.8,3.2078]
[1739423186605,3.2078,2712.9,2712.4,0.5451]
[1739423186813,0.5768,2712.8,2712.3,3.2078]
[1739423187001,0.73724,2712.5,2712.3,3.2078]
[1739423187407,0.00553097,2712.7,2712.3,3.2078]
[1739423187812,0.7372,2712.6,2712.3,3.2078]
[1739423188108,0.7372,2712.6,2712.4,0.73723]
[1739423188307,0.7372,2712.6,2712.3,3.2078]
[1739423188505,0.00553097,2712.7,2712.3,3.2078]
[1739423188712,0.00553097,2712.7,2712.6,0.73719]
[1739423189110,0.00553097,2712.7,2712.6,3.94499]
[1739423189306,3.2078,2713.2,2712.6,3.94499]
[1739423189502,3.2078,2713.2,2712.9,3.20667578]
[1739423189708,4.52155,2713.5,2713.2,0.73702]
[1739423190112,4.52156,2713.5,2713.1,0.73703]
[1739423190313,3.7846,2713.5,2713.2,0.5669]
[1739423190505,3.7846,2713.5,2713.0,0.00553097]
[1739423190705,0.73704,2713.2,2713.0,0.00553097]
[1739423190902,0.73705,2713.1,2713.0,1.11613097]
[1739423192815,0.73705,2713.1,2713.0,0.00553097]
[1739423193811,0.73727,2712.4,2712.2,3.2078]
[1739423194011,3.2078,2712.5,2711.9,3.2078]
[1739423194213,0.73733,2712.1,2711.9,3.2078]
[1739423194517,0.73732,2712.1,2711.9,3.94517]
[1739423194717,3.2078,2712.1,2711.8,1.1439]
[1739423194915,3.2078,2712.1,2711.8,1.8813]
[1739423195111,3.2078,2712.1,2711.8,1.1439]
[1739423195320,3.2078,2712.1,2711.8,1.88128]
[1739423195518,3.2078,2712.1,2711.9,0.73738]
[1739423195710,0.00553097,2712.3,2711.8,1.1439]
[1739423196020,0.73732,2712.2,2711.8,1.88129]
[1739423196217,0.00553097,2712.3,2711.8,1.1439]
[1739423196425,0.00553097,2712.3,2712.2,0.7373]
[1739423197233,0.73708,2713.0,2712.6,0.73716]
[1739423197525,3.94487,2713.1,2712.7,5.07061578]
[1739423197931,3.2078,2713.1,2712.7,4.33347578]
[1739423198233,0.73713,2712.8,2712.7,1.1268]
[1739423198829,3.2078,2713.1,2712.7,1.1268]
[1739423199029,0.73712,2712.9,2712.7,1.1268]
[1739423199224,0.73713,2712.8,2712.7,0.5484]
[1739423199533,0.73713,2712.8,2712.6,0.00553097]
[1739423199534,0.73716,2712.7,2712.6,0.00553097]
[1739423199730,1.31736,2712.7,2712.6,0.00553097]
[1739423200028,0.73731,2712.2,2711.9,0.73737]
[1739423200228,0.73734,2712.1,2711.8,4.92367578]
[1739423200526,0.73738,2711.9,2711.7,0.73742]
[1739423200732,0.73738,2711.9,2711.6,1.29234]
[1739423201030,3.2078,2712.1,2711.6,0.5549]
[1739423201225,0.73736,2712.0,2711.7,0.73742]
[1739423201624,3.2078,2712.1,2711.6,0.5549]
[1739423202022,3.2078,2712.1,2711.9,0.73736]
[1739423202227,3.94514,2712.1,2711.8,0.7374]
[1739423202428,3.94513,2712.1,2711.6,0.5549]
[1739423202631,0.73739,2711.9,2711.6,1.29235]
[1739423202822,0.73737,2712.0,2711.6,1.29235]
[1739423203025,0.73738,2711.9,2711.6,1.29235]
[1739423203227,0.73738,2711.9,2711.6,0.5549]
[1739423203429,3.2078,2712.1,2711.6,0.5549]
[1739423203825,3.2078,2712.5,2712.2,0.73728]
[1739423204031,3.2078,2712.5,2712.1,3.20667578]
[1739423204231,3.2078,2712.5,2712.3,0.73726]
[1739423204432,3.2078,2712.5,2712.2,1.7156]
[1739423204729,3.94502,2712.5,2712.2,1.7156]
[1739423205026,3.2078,2712.5,2712.2,1.7156]
[1739423205436,3.94504,2712.5,2712.2,1.7156]
[1739423205735,3.2078,2712.5,2712.2,1.7156]
[1739423205934,0.73725,2712.4,2712.2,1.7156]
[1739423206124,3.2078,2712.5,2712.2,1.7156]
[1739423206527,0.73725,2712.4,2712.2,1.7156]
[1739423206733,3.2078,2712.5,2712.2,1.7156]
[1739423206933,0.73726,2712.4,2712.2,1.7156]
[1739423207336,3.2078,2712.5,2712.2,1.7156]
[1739423207735,0.73725,2712.4,2712.2,1.7156]
[1739423207930,0.73727,2712.3,2712.2,1.7156]
[1739423208331,0.73725,2712.4,2712.2,1.7156]
[1739423208734,0.73727,2712.3,2712.2,0.5907]
[1739423209134,3.2078,2712.5,2711.9,4.9198]
[1739423209642,3.2078,2712.2,2711.7,0.5728]
[1739423209939,3.2078,2712.2,2710.8,2.02561353]
[1739423209940,3.2078,2711.9,2711.3,0.542]
[1739423210138,0.73751,2711.4,2711.3,0.542]
[1739423210933,0.73754,2711.3,2711.2,0.5415]
[1739423211131,3.2078,2711.3,2710.8,0.73766]
[1739423211334,0.73761,2711.1,2710.6,4.91967578]
[1739423211537,3.2078,2711.3,2710.6,4.91967578]
[1739423211738,3.2078,2710.7,2709.8,3.20667578]
[1739423211944,3.2078,2710.7,2709.2,3.2078]
[1739423211945,6.41447578,2710.3,2709.5,0.5785]
[1739423212340,3.2078,2710.0,2709.5,3.78517578]
[1739423212643,0.73795,2709.9,2709.5,0.5785]
[1739423212832,3.2078,2710.0,2709.5,0.5785]
[1739423213140,0.73792,2709.9,2709.5,0.5785]
[1739423213439,3.2078,2709.6,2709.3,1.1603]
[1739423213634,3.2078,2709.6,2708.9,3.2078]
[1739423213831,3.2078,2709.3,2708.6,47.79297578]
[1739423214034,3.2078,2709.3,2708.6,45.32342578]
[1739423214344,3.2078,2709.3,2708.7,0.73823]
[1739423214539,3.2078,2709.3,2708.6,47.79297578]
[1739423214845,3.2078,2709.3,2708.7,0.73824]
[1739423215042,3.2078,2709.3,2708.6,7.73123578]
[1739423215241,3.2078,2709.3,2708.6,6.99297578]
[1739423215437,3.2078,2709.3,2708.7,0.73825]
[1739423215645,3.2078,2709.3,2708.6,3.7863]
[1739423215843,3.2078,2709.0,2708.6,3.2078]
[1739423216137,3.2078,2708.7,2707.5,0.5389]
[1739423216339,1.74,2709.0,2707.1,3.2078]
[1739423216340,3.2078,2707.8,2707.1,3.2078]
[1739423216547,3.2078,2707.8,2707.2,4.03076173]
[1739423217043,0.00553097,2707.7,2707.2,4.03076173]
[1739423217239,1.75553097,2707.7,2706.8,3.2078]
[1739423217442,3.2078,2707.4,2706.8,3.2078]
[1739423217837,3.94642,2707.4,2706.8,3.2078]
[1739423218036,3.2078,2707.4,2706.8,3.2078]
[1739423218439,0.00553097,2707.7,2707.2,7.23856173]
[1739423218638,3.2078,2708.4,2707.6,7.23856173]
[1739423218843,3.2078,2708.4,2707.9,3.2078]
[1739423219046,3.2078,2708.4,2707.9,1.76]
[1739423219245,3.2078,2708.4,2707.9,5.79076173]
[1739423219445,3.2078,2708.4,2708.0,1.761]
[1739423219850,3.94615,2708.4,2708.1,40.8]
[1739423220240,3.2078,2708.4,2708.1,40.8]
[1739423220636,3.2078,2708.4,2708.2,4.03076173]
[1739423220943,0.00554129,2708.5,2708.3,3.2078]
[1739423221147,0.00554129,2708.5,2708.3,4.96273734]
[1739423221448,0.00554129,2708.5,2708.4,4.69936058]
[1739423221636,0.00554129,2708.5,2708.3,1.75493734]
[1739423221841,0.00554129,2708.5,2708.3,4.96273734]
[1739423222040,3.2078,2709.3,2708.8,0.7382]
[1739423222245,3.2078,2709.3,2708.8,1.766]
[1739423222448,3.2078,2709.6,2708.9,0.73819]
[1739423222652,3.2078,2709.6,2709.0,4.03076173]
[1739423222943,3.2078,2709.6,2709.0,7.23856173]
[1739423223149,0.73812,2709.2,2709.0,4.03076173]
[1739423223350,3.2078,2709.3,2708.7,1.766]
[1739423223751,3.94591,2709.3,2708.7,1.77154129]
[1739423224052,3.2078,2709.3,2708.7,1.77154129]
[1739423224255,3.2078,2709.3,2708.8,5.48849571]
[1739423224446,0.00554129,2709.6,2709.0,3.2078]
[1739423224648,0.00554129,2709.6,2709.1,4.03076173]
[1739423224649,0.74355129,2709.6,2709.1,4.03076173]
[1739423224849,0.00554129,2709.6,2709.3,3.2078]
[1739423225046,0.00554129,2709.6,2709.3,3.94587]
[1739423225250,0.00554129,2709.6,2709.5,0.73803]
[1739423225454,0.00554129,2709.6,2709.5,40.8]
[1739423225749,0.00554129,2709.6,2709.4,4.62166173]
[1739423226049,0.00554129,2709.6,2709.5,0.73803]
[1739423227153,0.00554129,2709.6,2709.4,4.62166173]
[1739423227345,0.00554129,2709.6,2709.5,0.73803]
[1739423229548,3.2078,2710.3,2709.5,10.71668965]
[1739423229856,3.2078,2710.3,2709.8,4.03076173]
[1739423230150,3.2078,2710.3,2709.7,3.2078]
[1739423230358,3.2078,2710.3,2709.8,1.764]
[1739423230557,0.73785,2710.2,2709.8,1.764]
[1739423230854,0.73786,2710.2,2709.8,1.764]
[1739423231156,3.21334129,2710.3,2709.8,1.764]
[1739423231354,3.21334129,2710.3,2709.9,0.73791]
[1739423231553,3.21334129,2710.3,2709.8,1.764]
[1739423231855,0.00554129,2710.3,2710.2,0.73784]
[1739423232549,3.2078,2710.9,2710.2,4.75295761]
[1739423232754,3.2078,2711.4,2711.0,0.73761]
[1739423232952,3.2078,2711.4,2710.8,1.766]
[1739423233157,3.2078,2711.4,2710.8,4.9738]
[1739423233648,3.2078,2711.4,2710.9,1.767]
[1739423233849,3.21334129,2711.4,2710.8,0.00554129]
[1739423234048,3.2078,2711.1,2710.8,0.00554129]
[1739423234252,0.73765,2710.9,2710.8,0.00554129]
[1739423235455,3.2078,2711.1,2710.8,0.00554129]
[1739423236055,3.94541,2711.1,2710.8,0.00554129]
[1739423236255,3.2078,2711.1,2710.8,0.00554129]
[1739423236867,0.73765,2710.9,2710.8,0.00554129]
[1739423237751,3.2078,2711.1,2710.8,0.00554129]
[1739423237951,0.73765,2710.9,2710.8,0.00554129]
[1739423238653,11.87495173,2710.9,2709.8,1.769]
[1739423238849,0.73785,2710.2,2709.9,0.73792]
[1739423239049,0.73786,2710.2,2709.8,0.73794]
[1739423239247,0.73785,2710.2,2709.8,0.73793]
[1739423239447,3.2078,2710.3,2709.7,1.1519]
[1739423239649,0.73795,2709.8,2709.7,0.00554129]
[1739423240062,6.0,2709.8,2709.1,3.2078]
[1739423240352,3.2078,2709.4,2708.7,1.771]
[1739423240553,0.73813,2709.2,2708.7,2.50923]
[1739423240858,3.2078,2709.4,2708.6,3.2078]
[1739423241063,3.94586,2709.4,2709.0,0.73815]
[1739423241255,3.2078,2709.4,2709.1,0.73814]
[1739423241453,3.2078,2709.4,2708.7,0.00554129]
[1739423241756,3.2078,2709.7,2709.5,0.73802]
[1739423241956,3.2078,2709.7,2709.1,1.769]
[1739423242460,3.2078,2709.4,2708.7,1.77654129]
[1739423242656,0.73816,2709.1,2708.7,1.77654129]
[1739423242864,0.7381,2709.3,2708.8,0.73822]
[1739423243161,3.2078,2709.4,2708.7,0.00554129]
[1739423243364,0.7381,2709.3,2708.7,0.00554129]